bitfinex/quotes_SOLUSD_20251223
["timestamp","ask_amount","ask_price","bid_price","bid_amount"]
[1766529751613,0.2,124.04,124.01,2.96136939]
[1766529751821,0.2,124.04,124.02,0.71]
[1766529752003,0.91,124.04,124.02,0.71]
[1766529753521,0.91,124.04,124.01,0.71]
[1766529760334,0.2,124.04,124.01,0.71]
[1766529760521,0.89,124.04,124.01,0.71]
[1766529763709,0.89,124.04,124.01,3.67136939]
[1766529764419,0.89,124.04,124.01,11.73523109]
[1766529767845,0.2,124.16,124.03,2.96136939]
[1766529768033,0.2,124.09,124.06,2.96136939]
[1766529768231,0.2,124.09,124.05,2.96136939]
[1766529768533,0.2,124.09,124.06,2.96136939]
[1766529769751,0.2,124.09,124.03,25.15767296]
[1766529769955,0.2,124.09,124.07,8.05972142]
[1766529770141,0.2,124.09,124.08,2.96136939]
[1766529770749,0.2,124.09,124.07,8.05972142]
[1766529771050,0.89,124.09,124.07,11.02109081]
[1766529771255,0.2,124.09,124.07,8.05972142]
[1766529771451,0.2,124.09,124.07,11.02109081]
[1766529775667,0.2,124.09,124.08,2.96136939]
[1766529776040,18.49442415,124.12,124.08,2.96136939]
[1766529776242,0.69,124.11,124.08,2.96136939]
[1766529777351,0.69,124.11,124.08,11.02018626]
[1766529777563,0.69,124.11,124.09,2.96136939]
[1766529778256,0.69,124.11,124.08,8.05881687]
[1766529778566,0.69,124.11,124.09,2.96136939]
[1766529779080,0.69,124.12,124.08,8.05881687]
[1766529779370,0.69,124.12,124.08,20.14829142]
[1766529779570,0.69,124.12,124.09,2.96136939]
[1766529781367,0.69,124.12,124.09,11.01961169]
[1766529784179,0.69,124.12,124.1,2.96136939]
[1766529786195,0.69,124.12,124.08,28.20760798]
[1766529786370,0.69,124.12,124.1,2.96136939]
[1766529789494,0.69,124.12,124.1,11.01936838]
[1766529792714,0.69,124.12,124.08,28.20760798]
[1766529793018,0.69,124.12,124.1,2.96136939]
[1766529793924,0.69,124.12,124.1,11.01938171]
[1766529794104,0.69,124.12,124.1,9.94993008]
[1766529794620,0.69,124.12,124.1,8.05801232]
[1766529795514,0.69,124.12,124.1,9.94993008]
[1766529795895,0.69,124.12,124.09,1.89191776]
[1766529797320,0.69,124.12,124.09,9.94999455]
[1766529798816,0.69,124.12,124.09,1.89191776]
[1766529800528,0.69,124.12,124.09,9.94999322]
[1766529803638,0.2,124.13,124.11,0.69]
[1766529803838,102.9,124.16,124.12,2.58191776]
[1766529804137,102.9,124.16,124.13,1.89191776]
[1766529804310,102.9,124.16,124.12,0.69]
[1766529804311,0.2,124.16,124.14,1.89191776]
[1766529805641,0.9,124.16,124.13,10.63747451]
[1766529807114,0.9,124.16,124.13,8.74555675]
[1766529807319,0.9,124.16,124.13,10.63747451]
[1766529807541,0.9,124.16,124.13,8.74555675]
[1766529807871,0.9,124.16,124.13,10.63747451]
[1766529808518,0.9,124.16,124.14,1.89191776]
[1766529809355,0.9,124.16,124.13,10.63747451]
[1766529809660,0.9,124.16,124.13,8.74555675]
[1766529809970,0.9,124.16,124.13,10.63747451]
[1766529810151,0.9,124.16,124.13,8.74555675]
[1766529815170,0.71,124.15,124.12,10.63838084]
[1766529815385,0.71,124.15,124.13,8.05607024]
[1766529818146,0.71,124.15,124.13,8.73607024]
[1766529819178,0.36398388,124.15,124.13,8.73607024]
[1766529819839,0.36398388,124.15,124.13,8.05607024]
[1766529820139,0.36398388,124.15,124.13,8.05603484]
[1766529821546,0.36398388,124.15,124.12,8.7367193]
[1766529822667,0.36398388,124.15,124.13,8.73604034]
[1766529825774,0.9,124.16,124.13,8.73604034]
[1766529827191,0.9,124.16,124.13,0.68]
[1766529827977,0.9,124.16,124.13,8.7360352]
[1766529829388,0.9,124.16,124.14,0.68]
[1766529830688,0.2,124.16,124.14,0.68]
[1766529833087,0.2,124.16,124.14,8.73533478]
[1766529833965,0.9,124.16,124.14,8.73533478]
[1766529834166,0.2,124.16,124.14,8.73533478]
[1766529837493,0.9,124.16,124.13,28.87624586]
[1766529837665,0.2,124.16,124.13,8.05607024]
[1766529837871,1.89191776,124.15,124.1,8.05762821]
[1766529838089,1.89191776,124.14,124.09,0.68]
[1766529838277,0.7,124.13,124.09,0.68]
[1766529838671,0.7,124.12,124.07,24.65139348]
[1766529838985,0.7,124.11,124.06,2.57191776]
[1766529839200,0.7,124.11,124.05,24.86984438]
[1766529839201,0.7,124.09,124.05,9.95318163]
[1766529839363,0.7,124.09,124.05,10.63318163]
[1766529839766,0.7,124.08,124.05,0.68]
[1766529840495,0.7,124.08,124.03,0.68]
[1766529840785,0.7,124.08,124.03,2.57191776]
[1766529841096,0.7,124.07,124.02,1.89191776]
[1766529841296,0.7,124.06,124.01,25.33553795]
[1766529841672,0.7,124.05,124.01,10.63553795]
[1766529841872,0.7,124.05,124.01,9.95553795]
[1766529842495,2.59191776,124.05,124.0,0.88]
[1766529842666,0.7,124.04,124.0,0.88]
[1766529843286,0.7,124.04,124.0,8.9444509]
[1766529843496,0.7,124.05,124.02,1.89191776]
[1766529843691,0.7,124.05,124.03,1.89191776]
[1766529843879,18.49741659,124.08,124.03,1.89191776]
[1766529844079,8.05869944,124.09,124.04,2.57191776]
[1766529844280,0.7,124.08,124.03,0.68]
[1766529844498,0.7,124.08,124.05,1.89191776]
[1766529845207,0.7,124.08,124.05,2.57191776]
[1766529849671,0.7,124.08,124.05,10.63292014]
[1766529851399,25.15767296,124.1,124.05,9.95292014]
[1766529851582,0.69,124.09,124.06,2.57191776]
[1766529853307,0.69,124.09,124.07,8.05996614]
[1766529859510,0.69,124.11,124.07,11.01773883]
[1766529859692,0.69,124.11,124.07,11.69773883]
[1766529860209,0.69,124.11,124.05,2.95777269]
[1766529860210,3.64777269,124.11,124.05,2.95777269]
[1766529860376,0.69,124.1,124.05,0.68]
[1766529860787,0.69,124.1,124.04,11.69959633]
[1766529861296,3.64777269,124.1,124.04,11.01959633]
[1766529861500,0.69,124.09,124.05,0.68]
[1766529862185,0.69,124.08,124.05,0.68]
[1766529866390,0.69,124.08,124.05,3.63777269]
[1766529872114,0.69,124.08,124.05,0.68]
[1766529872309,0.69,124.08,124.05,3.63777269]
[1766529872813,8.74931875,124.08,124.05,3.63777269]
[1766529874625,0.69,124.08,124.05,3.63777269]
[1766529875216,0.69,124.08,124.05,2.95777269]
[1766529875610,0.69,124.08,124.05,3.65777269]
[1766529884423,0.69,124.08,124.05,0.7]
[1766529885828,0.69,124.08,124.05,0.72]
[1766529887622,8.05943686,124.08,124.04,8.78182364]
[1766529887819,0.71,124.07,124.04,11.73959633]
[1766529892416,0.71,124.07,124.03,11.02033819]
[1766529893132,0.71,124.07,124.03,11.74033819]
[1766529894535,0.71,124.07,124.04,11.01946016]
[1766529899841,0.71,124.07,124.04,11.73946016]
[1766529905151,0.71,124.07,124.03,11.74002884]
[1766529905323,0.71,124.07,124.03,3.67777269]
[1766529905524,0.71,124.07,124.04,0.72]
[1766529906251,0.71,124.07,124.04,8.78185963]
[1766529907953,0.71,124.07,124.04,11.73963232]
[1766529908956,0.71,124.07,124.04,8.78185963]
[1766529909158,0.71,124.07,124.04,11.73963232]
[1766529910166,0.71,124.07,124.04,11.01963232]
[1766529910451,0.71,124.07,124.04,11.70963232]
[1766529915960,0.71,124.07,124.04,10.64532251]
[1766529917659,8.76997961,124.07,124.04,0.69]
[1766529917842,0.71,124.06,124.02,25.36652086]
[1766529918158,0.71,124.06,124.03,0.69]
[1766529919153,8.77068186,124.06,124.03,0.69]
[1766529919748,0.71,124.05,124.03,0.69]
[1766529919950,8.77027194,124.07,124.04,2.58346288]
[1766529920146,0.71,124.06,124.04,1.89346288]
[1766529920473,0.71,124.06,124.03,2.58346288]
[1766529921388,0.71,124.06,124.03,0.69]
[1766529921684,8.77063163,124.06,124.03,0.69]
[1766529924181,1.89346288,124.06,124.01,8.75386581]
[1766529924348,0.71,124.05,124.0,10.15783049]
[1766529924550,0.71,124.05,124.0,10.84783049]
[1766529925351,0.71,124.05,124.0,8.95436761]
[1766529925557,0.71,124.04,124.0,10.84783049]
[1766529929083,0.71,124.04,124.0,10.15783049]
[1766529929372,0.71,124.04,124.01,0.69]
[1766529930660,0.71,124.03,124.0,2.78346288]
[1766529930973,0.71,124.03,124.0,0.2]
[1766529931874,0.71,124.02,124.0,0.2]
[1766529938265,0.71,124.02,123.99,1.89346288]
[1766529939673,0.71,124.02,123.99,2.60346288]
[1766529943305,0.71,124.02,123.99,1.89346288]
[1766529943777,0.71,124.01,123.98,2.60346288]
[1766529944596,0.71,124.0,123.97,2.60346288]
[1766529946001,0.71,123.98,123.94,0.71]
[1766529946192,0.71,123.97,123.94,0.71]
[1766529946580,0.61048973,123.97,123.94,0.71]
[1766529947292,12.33113584,123.99,123.94,0.71]
[1766529947487,27.05113584,123.99,123.94,0.71]
[1766529948581,8.06581706,123.98,123.94,0.71]
[1766529948784,8.77581706,123.98,123.94,0.71]
[1766529948979,0.71,123.97,123.94,0.71]
[1766529949605,0.71,123.97,123.93,0.2]
[1766529950283,0.71,123.97,123.93,0.91]
[1766529951514,0.71,123.96,123.93,0.91]
[1766529952407,8.77658385,123.97,123.94,0.71]
[1766529952811,8.77658385,123.97,123.94,2.60346288]
[1766529952812,0.71,123.97,123.94,2.60346288]
[1766529953010,0.71,123.97,123.94,0.71]
[1766529953912,8.06634641,123.98,123.94,9.96180541]
[1766529954090,25.86767296,123.99,123.96,0.71]
[1766529955209,33.93284247,123.99,123.96,0.71]
[1766529956719,25.86767296,123.99,123.96,0.71]
[1766529958712,33.22228829,124.0,123.96,8.77708148]
[1766529958908,33.93228829,124.0,123.97,0.71]
[1766529959614,0.71,123.99,123.96,0.71]
[1766529961922,14.72,124.0,123.97,0.71]
[1766529962293,40.52754649,124.04,123.97,1.89346288]
[1766529962495,0.71,124.05,124.0,0.71]
[1766529962700,0.71,124.05,124.01,8.06323839]
[1766529962901,0.71,124.05,124.02,0.71]
[1766529963116,0.71,124.07,124.03,0.71]
[1766529963306,0.71,124.08,124.04,0.71]
[1766529963516,11.14767296,124.08,124.04,0.71]
[1766529964117,23.4889197,124.09,124.04,0.71]
[1766529964624,10.43767296,124.08,124.04,0.71]
[1766529965426,10.43767296,124.08,124.05,0.71]
[1766529970130,23.43829654,124.1,124.06,0.68]
[1766529970426,8.71829654,124.1,124.07,0.68]
[1766529971423,0.66,124.1,124.07,0.68]
[1766529973029,8.05765225,124.11,124.08,0.68]
[1766529974930,8.71765225,124.11,124.08,0.68]
[1766529976122,8.05765225,124.11,124.06,11.01766806]
[1766529976335,0.66,124.1,124.07,0.68]
[1766529976737,8.71765225,124.11,124.07,0.68]
[1766529978039,8.05765225,124.11,124.07,0.68]
[1766529978239,8.71765225,124.11,124.07,0.68]
[1766529978941,8.05765225,124.11,124.07,0.68]
[1766529979349,0.66,124.1,124.07,0.68]
[1766529983454,0.66,124.1,124.07,8.05980935]
[1766529983635,0.66,124.1,124.07,8.73980935]
[1766529989762,0.1,124.12,124.07,28.20972472]
[1766529989935,0.1,124.12,124.11,0.68]
[1766529991757,1e-08,124.12,124.11,8.73736846]
[1766529994541,1e-08,124.12,124.11,11.69470086]
[1766529996551,1e-08,124.12,124.11,8.73736846]
[1766529996749,1e-08,124.12,124.11,11.69470086]
[1766530000361,0.66,124.15,124.12,8.05670167]
[1766530000567,0.66,124.15,124.13,0.69]
[1766530001544,136.11207179,124.16,124.14,0.68]
[1766530001545,0.2,124.16,124.14,0.68]
[1766530001738,0.2,124.16,124.14,2.9573324]
[1766530001971,0.2,124.17,124.15,3.6373324]
[1766530002660,0.2,124.17,124.16,0.68]
[1766530004254,0.2,124.17,124.14,0.68]
[1766530004255,0.88,124.17,124.14,0.68]
[1766530004455,0.68,124.16,124.13,11.01311938]
[1766530004971,0.88,124.17,124.14,0.68]
[1766530007570,8.93355087,124.17,124.14,0.68]
[1766530009042,0.68,124.16,124.13,8.05578698]
[1766530009249,0.68,124.16,124.13,8.73578698]
[1766530010773,8.73415475,124.16,124.13,0.68]
[1766530010976,0.68,124.16,124.13,0.68]
[1766530011559,0.68,124.16,124.1,2.9573324]
[1766530011560,0.68,124.15,124.1,2.9573324]
[1766530011762,3.6373324,124.11,124.06,0.68]
[1766530011960,13.39500536,124.08,124.02,3.6373324]
[1766530012162,0.68,124.06,124.02,0.68]
[1766530012368,0.68,124.06,124.02,3.6373324]
[1766530012662,0.68,124.06,124.02,11.70047318]
[1766530012975,0.68,124.06,124.04,2.9573324]
[1766530013171,10.43767296,124.09,124.02,28.2211798]
[1766530013172,25.81767296,124.1,124.05,3.6373324]
[1766530013366,33.8758464,124.1,124.06,0.68]
[1766530013666,33.8758464,124.1,124.06,3.6373324]
[1766530014679,0.68,124.09,124.06,0.68]
[1766530018379,14.72,124.1,124.07,0.68]
[1766530018584,14.72,124.1,124.07,3.6373324]
[1766530018766,0.68,124.11,124.07,3.6373324]
[1766530019885,0.68,124.11,124.07,11.69720064]
[1766530020378,0.68,124.11,124.07,8.73986824]
[1766530020575,0.68,124.11,124.07,11.69720064]
[1766530020772,14.72,124.12,124.08,3.6373324]
[1766530020972,15.4,124.12,124.08,3.6373324]
[1766530021884,15.4,124.12,124.08,11.69637241]
[1766530022274,0.68,124.15,124.11,3.6373324]
[1766530022476,0.68,124.15,124.12,0.68]
[1766530024387,0.68,124.15,124.11,8.73706873]
[1766530024584,0.68,124.15,124.11,11.69440113]
[1766530026091,0.68,124.15,124.11,11.01440113]
[1766530026266,0.68,124.15,124.11,11.69440113]
[1766530027293,0.68,124.15,124.12,0.71]
[1766530027492,0.68,124.15,124.12,8.76652368]
[1766530028985,0.71,124.14,124.09,2.9573324]
[1766530029194,0.71,124.14,124.09,11.72559913]
[1766530029384,14.72,124.13,124.09,2.9573324]
[1766530029578,0.71,124.12,124.08,11.72646173]
[1766530031174,0.71,124.12,124.09,0.71]
[1766530034285,0.71,124.12,124.09,3.6673324]
[1766530036300,0.71,124.12,124.09,0.71]
[1766530036600,8.76697124,124.12,124.09,0.71]
[1766530037102,8.05697124,124.12,124.08,3.6673324]
[1766530037304,0.71,124.11,124.08,3.6673324]
[1766530038008,0.71,124.11,124.08,2.60230853]
[1766530039505,15.43,124.13,124.09,2.60230853]
[1766530040008,0.71,124.14,124.11,0.71]
[1766530041306,0.71,124.14,124.11,10.65960112]
[1766530042180,0.71,124.14,124.12,1.89230853]
[1766530043002,0.71,124.14,124.11,10.65960112]
[1766530044704,0.71,124.14,124.12,8.05647841]
[1766530045989,0.91,124.17,124.13,0.71]
[1766530046189,0.2,124.17,124.15,0.71]
[1766530046390,0.2,124.17,124.15,2.60230853]
[1766530047415,0.2,124.17,124.15,10.65658632]
[1766530047798,10.63767296,124.21,124.17,0.71]
[1766530048003,11.14767296,124.2,124.17,2.60230853]
[1766530048202,11.14767296,124.2,124.17,0.71]
[1766530051292,11.14767296,124.2,124.17,8.76318238]
[1766530052722,11.14767296,124.2,124.17,0.71]
[1766530053426,11.14767296,124.2,124.17,10.65575945]
[1766530054431,11.14767296,124.2,124.17,8.76345092]
[1766530054627,0.2,124.21,124.17,8.05345092]
[1766530054926,0.91,124.21,124.18,2.60230853]
[1766530057002,0.2,124.21,124.18,8.05223736]
[1766530057218,0.1,124.24,124.21,0.7]
[1766530057716,8.14895252,124.24,124.19,0.7]
[1766530057916,8.14895252,124.24,124.2,0.7]
[1766530058427,8.14895252,124.24,124.19,0.7]
[1766530058628,10.04126105,124.24,124.19,0.7]
[1766530059031,1.89230853,124.23,124.19,0.7]
[1766530059229,0.69,124.22,124.19,0.7]
[1766530060304,8.74064276,124.22,124.18,1.89230853]
[1766530060508,8.74064276,124.22,124.18,2.60230853]
[1766530061132,0.69,124.21,124.18,2.60230853]
[1766530061446,0.69,124.21,124.18,0.71]
[1766530062230,8.05109509,124.21,124.17,1.89230853]
[1766530062430,0.69,124.2,124.16,0.71]
[1766530063830,0.69,124.19,124.16,0.71]
[1766530064334,0.69,124.18,124.14,1.89230853]
[1766530064541,0.69,124.16,124.13,0.71]
[1766530065220,0.69,124.16,124.12,1.89230853]
[1766530065534,0.69,124.15,124.1,1.89230853]
[1766530065709,0.69,124.13,124.1,1.89230853]
[1766530066028,0.69,124.13,124.1,2.60230853]
[1766530066625,0.69,124.13,124.1,0.71]
[1766530066823,8.05542129,124.14,124.11,0.71]
[1766530067225,8.7450643,124.15,124.11,0.71]
[1766530067529,8.7450643,124.15,124.1,9.95030769]
[1766530067530,0.69,124.14,124.1,10.66030769]
[1766530070439,0.69,124.14,124.1,8.76799916]
[1766530070738,0.69,124.14,124.1,10.66030769]
[1766530072739,9.94646763,124.16,124.1,9.95030769]
[1766530073038,0.69,124.16,124.13,2.60230853]
[1766530073235,128.77318145,124.21,124.15,2.60230853]
[1766530073441,0.69,124.19,124.15,2.60230853]
[1766530074110,0.69,124.19,124.16,0.71]
[1766530074343,0.69,124.19,124.16,8.76403091]
[1766530075831,0.69,124.19,124.16,0.71]
[1766530077260,2.58230853,124.19,124.14,0.71]
[1766530077557,0.69,124.18,124.14,0.71]
[1766530077734,1.89230853,124.18,124.13,8.76598512]
[1766530077917,0.69,124.16,124.11,10.6593122]
[1766530078517,0.69,124.15,124.11,0.71]
[1766530080252,8.74492624,124.15,124.11,0.71]
[1766530080423,0.69,124.14,124.11,0.71]
[1766530081227,8.74607024,124.13,124.09,2.60230853]
[1766530081839,0.69,124.13,124.09,10.6608062]
[1766530082046,0.69,124.13,124.09,9.9508062]
[1766530082221,0.69,124.14,124.1,1.89230853]
[1766530082417,0.69,124.14,124.09,8.05849767]
[1766530082418,0.69,124.15,124.11,1.89230853]
[1766530082642,15.39,124.17,124.13,2.60230853]
[1766530082852,0.69,124.18,124.14,2.60230853]
[1766530083069,0.69,124.18,124.15,0.71]
[1766530083269,0.69,124.18,124.15,8.76448277]
[1766530083618,0.69,124.18,124.14,8.0551172]
[1766530083823,0.69,124.18,124.14,8.7651172]
[1766530084140,2.58230853,124.18,124.14,8.7651172]
[1766530084947,10.63520708,124.18,124.14,8.7651172]
[1766530085147,10.63520708,124.18,124.14,0.71]
[1766530086240,8.74289855,124.18,124.14,0.71]
[1766530087246,8.70289855,124.18,124.14,0.71]
[1766530087559,8.70289855,124.18,124.14,8.76534771]
[1766530089458,8.70289855,124.18,124.14,0.71]
[1766530090666,1.89230853,124.17,124.13,0.67]
[1766530090842,0.65,124.15,124.12,0.67]
[1766530091044,0.65,124.15,124.1,25.32011813]
[1766530092358,0.65,124.14,124.1,25.32011813]
[1766530092669,0.65,124.14,124.1,0.67]
[1766530095678,8.70543519,124.14,124.1,0.67]
[1766530095968,8.70543519,124.14,124.1,2.56230853]
[1766530096169,8.70543519,124.14,124.1,0.67]
[1766530097975,8.70543519,124.14,124.1,3.62589428]
[1766530098777,0.65,124.13,124.1,0.67]
[1766530099144,0.65,124.13,124.1,3.62589428]
[1766530100774,0.65,124.13,124.1,2.95589428]
[1766530101370,0.65,124.13,124.09,11.01425329]
[1766530101564,0.65,124.13,124.1,0.67]
[1766530104875,8.7061178,124.13,124.1,0.67]
[1766530105374,0.65,124.13,124.1,0.67]
[1766530112083,8.70657553,124.13,124.1,0.67]
[1766530112377,0.65,124.12,124.09,0.67]
[1766530113888,8.7068047,124.12,124.09,0.67]
[1766530115182,0.65,124.11,124.08,0.67]
[1766530115482,0.65,124.11,124.07,18.32589428]
[1766530115979,8.05786554,124.11,124.07,3.62589428]
[1766530116286,0.65,124.1,124.07,3.62589428]
[1766530117982,8.7083171,124.1,124.07,3.62589428]
[1766530119692,28.19851755,124.12,124.07,2.95589428]
[1766530119891,0.66,124.11,124.08,0.71]
[1766530121094,8.71772406,124.11,124.08,0.71]
[1766530121302,0.66,124.1,124.07,3.66589428]
[1766530121967,0.66,124.1,124.07,0.71]
[1766530122170,0.66,124.1,124.07,3.66589428]
[1766530122499,8.71838506,124.1,124.07,3.66589428]
[1766530122675,8.71838506,124.1,124.07,0.71]
[1766530123084,8.71838506,124.1,124.07,3.66589428]
[1766530126196,0.66,124.1,124.07,3.66589428]
[1766530126576,0.66,124.1,124.07,11.72575842]
[1766530129305,0.66,124.1,124.07,8.76986414]
[1766530129600,0.66,124.1,124.07,0.71]
[1766530129773,0.66,124.1,124.07,3.66589428]
[1766530129969,0.66,124.1,124.07,11.72584619]
[1766530130698,0.66,124.1,124.07,8.76995191]
[1766530130903,0.66,124.1,124.07,11.72584619]
[1766530131504,0.66,124.11,124.08,0.71]
[1766530140804,0.66,124.11,124.08,8.76931185]
[1766530142516,0.66,124.11,124.08,0.71]
[1766530147212,8.7267193,124.12,124.08,0.71]
[1766530147417,8.7267193,124.12,124.09,0.71]
[1766530147617,0.67,124.11,124.09,0.71]
[1766530152520,19.16404004,124.13,124.09,0.71]
[1766530154719,19.16404004,124.13,124.09,2.95589428]
[1766530154926,19.16404004,124.13,124.1,0.71]
[1766530155300,11.10767296,124.13,124.1,0.71]
[1766530155494,10.43767296,124.13,124.1,0.71]
[1766530155726,11.10767296,124.15,124.11,2.95589428]
[1766530155935,11.10767296,124.15,124.12,0.71]
[1766530157242,14.72,124.16,124.12,8.76662511]
[1766530157406,113.80767296,124.17,124.14,0.71]
[1766530157725,0.67,124.18,124.14,0.71]
[1766530158722,0.67,124.18,124.14,8.05501324]
[1766530158927,0.67,124.18,124.15,0.71]
[1766530163242,1.89064438,124.16,124.12,0.71]
[1766530163423,1.89064438,124.16,124.05,30.0]
[1766530163424,0.67,124.14,124.09,2.60064438]
[1766530163737,0.67,124.13,124.09,2.60064438]
[1766530164114,0.67,124.13,124.09,0.71]
[1766530165539,0.67,124.13,124.09,2.60064438]
[1766530166124,0.67,124.13,124.09,9.94897536]
[1766530166322,0.67,124.13,124.1,0.71]
[1766530166540,0.67,124.13,124.09,10.65897536]
[1766530169151,0.67,124.13,124.09,8.76833098]
[1766530170350,0.67,124.13,124.1,0.71]
[1766530171648,9.94635732,124.14,124.1,0.71]
[1766530171949,0.67,124.14,124.11,0.71]
[1766530175760,33.21272591,124.15,124.11,0.71]
[1766530175950,33.88272591,124.15,124.11,0.71]
[1766530176758,33.21272591,124.15,124.11,0.71]
[1766530176949,0.66,124.14,124.11,0.71]
[1766530183742,33.93272591,124.15,124.11,0.71]
[1766530183949,0.72,124.14,124.11,0.71]
[1766530188152,0.72,124.14,124.1,8.77800073]
[1766530191480,0.72,124.14,124.11,0.72]
[1766530212909,0.72,124.14,124.1,8.05800073]
[1766530213096,0.72,124.14,124.1,8.75800073]
[1766530216489,0.72,124.14,124.11,0.7]
[1766530221609,33.92272591,124.15,124.11,0.7]
[1766530222099,25.86767296,124.15,124.11,0.7]
[1766530222300,0.71,124.14,124.11,0.7]
[1766530230898,0.71,124.14,124.11,8.05689603]
[1766530231117,0.71,124.14,124.11,0.71]
[1766530233529,14.72,124.13,124.08,0.71]
[1766530233740,0.66,124.11,124.08,0.71]
[1766530234042,0.66,124.1,124.07,0.71]
[1766530242637,0.66,124.1,124.02,14.72]
[1766530242638,0.72,124.07,124.02,3.66604255]
[1766530242938,0.72,124.06,124.02,0.71]
[1766530244642,0.72,124.06,124.03,0.71]
[1766530244846,8.06105384,124.06,124.01,2.95604255]
[1766530245141,0.72,124.04,124.01,0.71]
[1766530245344,0.72,124.04,124.0,0.71]
[1766530245917,0.72,124.04,124.0,3.66604255]
[1766530246537,8.06202222,124.04,124.0,0.71]
[1766530246726,0.72,124.03,124.0,0.71]
[1766530248347,8.78286358,124.03,124.0,0.71]
[1766530248529,0.72,124.02,123.99,0.91]
[1766530249556,0.72,124.02,123.99,0.2]
[1766530250140,8.06360126,124.02,123.99,0.2]
[1766530250439,0.72,124.01,123.99,0.2]
[1766530252642,0.72,124.0,123.99,0.2]
[1766530258061,0.72,123.99,123.96,0.02785966]
[1766530258248,0.72,123.99,123.96,0.73785966]
[1766530262367,0.72,123.98,123.96,0.02785966]
[1766530262563,8.78535336,123.99,123.96,0.73785966]
[1766530265369,0.72,123.98,123.96,0.02785966]
[1766530267169,8.78602043,123.98,123.96,0.02785966]
[1766530267659,0.71,123.97,123.96,0.02785966]
[1766530268776,0.71,123.97,123.94,0.2]
[1766530268978,0.71,123.97,123.94,0.91]
[1766530270050,0.71,123.97,123.94,3.86604255]
[1766530273374,0.71,123.97,123.94,3.15604255]
[1766530273579,0.71,123.98,123.95,0.71]
[1766530276589,0.71,123.97,123.94,0.91]
[1766530278973,8.77647702,123.97,123.94,0.91]
[1766530279173,0.71,123.97,123.94,0.91]
[1766530280084,0.71,123.92,123.91,0.2]
[1766530280282,0.71,123.92,123.9,0.2]
[1766530280283,2.95604255,123.92,123.9,0.2]
[1766530280493,0.71,123.91,123.9,0.2]
[1766530282199,8.78037365,123.91,123.88,0.81]
[1766530283587,2.60878965,123.9,123.88,0.1]
[1766530283790,0.71,123.9,123.88,0.1]
[1766530284261,15.45,123.9,123.88,1e-08]
[1766530284457,17.97167036,123.9,123.88,1e-08]
[1766530284661,0.71,123.89,123.88,1e-08]
[1766530285790,8.78167648,123.89,123.88,1e-08]
[1766530287486,0.71,123.89,123.88,1e-08]
[1766530288287,8.78167648,123.89,123.88,1e-08]
[1766530291899,12.01334684,123.89,123.88,1e-08]
[1766530292085,11.30334684,123.89,123.88,1e-08]
[1766530294304,13.86213649,123.89,123.84,0.1]
[1766530294493,14.74,123.88,123.84,0.1]
[1766530294807,0.66,123.87,123.84,0.1]
[1766530295705,8.07314916,123.87,123.84,0.1]
[1766530296312,8.07314916,123.87,123.85,0.71]
[1766530297199,8.78314916,123.87,123.85,0.71]
[1766530297407,8.78314916,123.87,123.84,0.79]
[1766530297785,14.74,123.86,123.84,0.79]